fUSD/lending_fUSD_20260118
["ID","MTS","AMOUNT","RATE_DAILY","PERIOD"]
[402586890,1768714251965,-500.0,0.00017158,2]
[402586891,1768714251975,-500.0,0.00017158,2]
[402586892,1768714251984,-500.0,0.00017158,2]
[402586893,1768714251993,-500.0,0.00017158,2]
[402586894,1768714252003,-500.0,0.00017158,2]
[402586895,1768714252011,-500.0,0.00017158,2]
[402586896,1768714252020,-500.0,0.00017158,2]
[402586897,1768714252030,-500.0,0.00017158,2]
[402586898,1768714252040,-500.0,0.00017158,2]
[402586899,1768714252048,-500.0,0.00017158,2]
[402586900,1768714252057,-500.0,0.00017159,2]
[402586901,1768714252067,-500.0,0.00017159,2]
[402586902,1768714252076,-500.0,0.00017159,2]
[402586903,1768714252085,-500.0,0.00017159,2]
[402586904,1768714252094,-500.0,0.00017159,2]
[402586905,1768714252104,-500.0,0.00017159,2]
[402586906,1768714252113,-203.50214645,0.00017159,2]
[402586907,1768714252121,-500.0,0.00017159,2]
[402586908,1768714252130,-500.0,0.00017159,2]
[402586909,1768714252139,-500.0,0.00017159,2]
[402586910,1768714252148,-500.0,0.00017159,2]
[402586911,1768714252157,-500.0,0.00017159,2]
[402586912,1768714252166,-500.0,0.00017159,2]
[402586913,1768714252175,-500.0,0.00017159,2]
[402586914,1768714252184,-500.0,0.00017159,2]
[402586915,1768714252192,-500.0,0.00017159,2]
[402586916,1768714252201,-500.0,0.00017159,2]
[402586917,1768714252210,-500.0,0.00017159,2]
[402586918,1768714252219,-500.0,0.00017159,2]
[402586919,1768714252228,-500.0,0.00017159,2]
[402586920,1768714252237,-500.0,0.00017159,2]
[402586921,1768714252247,-500.0,0.00017159,2]
[402586922,1768714252257,-500.0,0.00017159,2]
[402586923,1768714252266,-500.0,0.00017159,2]
[402586924,1768714252275,-500.0,0.00017159,2]
[402586925,1768714252284,-500.0,0.00017159,2]
[402586926,1768714252293,-500.0,0.00017159,2]
[402586927,1768714252303,-500.0,0.00017159,2]
[402586928,1768714252312,-500.0,0.00017159,2]
[402586929,1768714252321,-500.0,0.00017159,2]
[402586930,1768714252330,-500.0,0.00017159,2]
[402586931,1768714252339,-500.0,0.00017159,2]
[402586932,1768714252349,-500.0,0.00017159,2]
[402586933,1768714252358,-500.0,0.00017159,2]
[402586934,1768714252366,-500.0,0.00017159,2]
[402586935,1768714252375,-631.89,0.00017159,2]
[402586936,1768714252384,-500.0,0.00017159,2]
[402586937,1768714252393,-500.0,0.00017159,2]
[402586938,1768714252402,-500.0,0.00017159,2]
[402586939,1768714252411,-484.22130877,0.00017159,2]
[402586940,1768714252420,-500.0,0.00017159,2]
[402586941,1768714252429,-500.0,0.00017159,2]
[402586942,1768714252438,-500.0,0.00017159,2]
[402586943,1768714252447,-500.0,0.00017159,2]
[402586944,1768714252456,-500.0,0.00017159,2]
[402586945,1768714252466,-500.0,0.00017159,2]
[402586946,1768714252475,-500.0,0.00017159,2]
[402586947,1768714252484,-500.0,0.00017159,2]
[402586948,1768714252492,-500.0,0.00017159,2]
[402586949,1768714252501,-504.82,0.00017159,2]
[402586950,1768714252510,-500.0,0.00017159,2]
[402586951,1768714252519,-570.06950595,0.00017159,2]
[402586952,1768714252527,-500.0,0.00017159,2]
[402586953,1768714252536,-500.0,0.00017159,2]
[402586954,1768714252545,-500.0,0.00017159,2]
[402586955,1768714252554,-500.0,0.00017159,2]
[402586956,1768714252564,-626.96,0.00017159,2]
[402586957,1768714252574,-500.0,0.00017159,2]
[402586958,1768714252584,-500.0,0.00017159,2]
[402586959,1768714252593,-619.88,0.00017159,2]
[402586960,1768714252603,-500.0,0.00017159,2]
[402586961,1768714252613,-500.0,0.00017159,2]
[402586962,1768714252623,-502.12,0.00017159,2]
[402586963,1768714252633,-500.0,0.00017159,2]
[402586964,1768714252643,-500.0,0.00017159,2]
[402586965,1768714252652,-500.0,0.00017159,2]
[402586966,1768714252662,-500.0,0.00017159,2]
[402586967,1768714252671,-500.0,0.00017159,2]
[402586968,1768714252681,-500.0,0.00017159,2]
[402586969,1768714252690,-500.0,0.00017159,2]
[402586970,1768714252699,-500.0,0.00017159,2]
[402586971,1768714252707,-500.0,0.00017159,2]
[402586972,1768714252716,-500.0,0.00017159,2]
[402586973,1768714252726,-500.0,0.00017159,2]
[402586974,1768714252736,-500.0,0.00017159,2]
[402586975,1768714252745,-500.0,0.00017159,2]
[402586976,1768714252754,-500.0,0.00017159,2]
[402586977,1768714252763,-500.0,0.00017159,2]
[402586978,1768714252773,-500.0,0.00017159,2]
[402586979,1768714252782,-500.0,0.00017159,2]
[402586980,1768714252791,-500.02,0.00017159,2]
[402586981,1768714252801,-500.0,0.00017159,2]
[402586982,1768714252810,-500.0,0.00017159,2]
[402586983,1768714252819,-500.0,0.00017159,2]
[402586984,1768714252829,-500.0,0.00017159,2]
[402586985,1768714252839,-566.23,0.00017159,2]
[402586986,1768714252848,-500.0,0.00017159,2]
[402586987,1768714252857,-500.0,0.00017159,2]
[402586988,1768714252867,-743.27,0.00017159,2]
[402586989,1768714252876,-500.0,0.00017159,2]
[402586990,1768714252885,-500.0,0.00017159,2]
[402586991,1768714252894,-547.02,0.00017159,2]
[402586992,1768714252904,-500.0,0.00017159,2]
[402586993,1768714252914,-500.0,0.00017159,2]
[402586994,1768714252923,-500.0,0.00017159,2]
[402586995,1768714252933,-500.0,0.00017159,2]
[402586996,1768714252943,-500.0,0.00017159,2]
[402586997,1768714252952,-500.0,0.00017159,2]
[402586998,1768714252961,-500.0,0.00017159,2]
[402586999,1768714252974,-500.0,0.00017159,2]
[402587000,1768714252982,-500.0,0.00017159,2]
[402587001,1768714252991,-500.0,0.00017159,2]
[402587002,1768714253000,-500.0,0.00017159,2]
[402587003,1768714253010,-500.0,0.00017159,2]
[402587004,1768714253019,-500.0,0.00017159,2]
[402587005,1768714253029,-500.0,0.00017159,2]
[402587006,1768714253040,-500.0,0.00017159,2]
[402587007,1768714253049,-500.0,0.00017159,2]
[402587008,1768714253059,-500.0,0.00017159,2]
[402587009,1768714253068,-500.0,0.00017159,2]
[402587010,1768714253077,-500.0,0.00017159,2]
[402587011,1768714253086,-500.0,0.00017159,2]
[402587012,1768714253095,-500.0,0.00017159,2]
[402587013,1768714253105,-500.0,0.00017159,2]
[402587014,1768714253115,-500.0,0.00017159,2]
[402587015,1768714253125,-500.0,0.00017159,2]
[402587016,1768714253136,-500.0,0.00017159,2]
[402587017,1768714253146,-500.0,0.00017159,2]
[402587018,1768714253157,-500.0,0.00017159,2]
[402587019,1768714253167,-396.38953581,0.00017159,2]
[402587020,1768714253176,-816.36,0.00017159,2]
[402587021,1768714253186,-500.0,0.00017159,2]
[402587022,1768714253196,-500.0,0.00017159,2]
[402587023,1768714253206,-500.0,0.00017159,2]
[402587024,1768714253215,-500.0,0.00017159,2]
[402587025,1768714253225,-500.0,0.00017159,2]
[402587026,1768714253236,-500.0,0.00017159,2]
[402587027,1768714253246,-500.0,0.00017159,2]
[402587028,1768714253256,-500.0,0.00017159,2]
[402587029,1768714253265,-500.0,0.00017159,2]
[402587030,1768714253275,-500.0,0.00017159,2]
[402587031,1768714253285,-500.0,0.00017159,2]
[402587032,1768714253295,-500.0,0.00017159,2]
[402587033,1768714253306,-500.0,0.00017159,2]
[402587034,1768714253316,-500.0,0.00017159,2]
[402587035,1768714253326,-500.0,0.00017159,2]
[402587036,1768714253336,-500.0,0.00017159,2]
[402587037,1768714253346,-522.32,0.00017159,2]
[402587038,1768714253356,-611.26,0.00017159,2]
[402587039,1768714253366,-500.0,0.00017159,2]
[402587040,1768714253375,-259.71711053,0.00017159,2]
[402587041,1768714253389,-500.0,0.00017159,2]
[402587042,1768714253397,-500.0,0.00017159,2]
[402587043,1768714253406,-500.0,0.00017159,2]
[402587044,1768714253415,-500.0,0.00017159,2]
[402587045,1768714253424,-500.0,0.00017159,2]
[402587046,1768714253433,-500.0,0.00017159,2]
[402587047,1768714253442,-500.0,0.00017159,2]
[402587048,1768714253451,-500.0,0.00017159,2]
[402587049,1768714253460,-500.0,0.00017159,2]
[402587050,1768714253469,-500.0,0.00017159,2]
[402587051,1768714253478,-500.0,0.00017159,2]
[402587052,1768714253487,-500.0,0.00017159,2]
[402587053,1768714253497,-500.0,0.00017159,2]
[402587054,1768714253506,-500.0,0.00017159,2]
[402587055,1768714253515,-500.0,0.00017159,2]
[402587056,1768714253525,-500.0,0.00017159,2]
[402587057,1768714253534,-500.0,0.00017159,2]
[402587058,1768714253542,-500.0,0.00017159,2]
[402587059,1768714253552,-500.0,0.00017159,2]
[402587060,1768714253562,-500.0,0.00017159,2]
[402587061,1768714253572,-500.0,0.00017159,2]
[402587062,1768714253581,-500.0,0.00017159,2]
[402587063,1768714253591,-500.0,0.00017159,2]
[402587064,1768714253601,-500.0,0.00017159,2]
[402587065,1768714253611,-500.0,0.00017159,2]
[402587066,1768714253622,-500.0,0.00017159,2]
[402587067,1768714253631,-500.0,0.00017159,2]
[402587068,1768714253641,-500.0,0.00017159,2]
[402587069,1768714253650,-500.0,0.00017159,2]
[402587070,1768714253660,-500.0,0.00017159,2]
[402587071,1768714253670,-242.24156802,0.00017159,2]
[402587072,1768714253680,-500.0,0.00017159,2]
[402587073,1768714253689,-500.0,0.00017159,2]
[402587074,1768714253699,-500.0,0.00017159,2]
[402587075,1768714253709,-500.0,0.00017159,2]
[402587076,1768714253718,-500.0,0.00017159,2]
[402587077,1768714253728,-500.0,0.00017159,2]
[402587078,1768714253738,-500.0,0.00017159,2]
[402587079,1768714253747,-500.0,0.00017159,2]
[402587080,1768714253760,-500.0,0.00017159,2]
[402587081,1768714253769,-500.0,0.00017159,2]
[402587082,1768714253780,-613.40656677,0.00017159,2]
[402587083,1768714253789,-500.0,0.00017159,2]
[402587084,1768714253799,-500.0,0.00017159,2]
[402587085,1768714253808,-500.0,0.00017159,2]
[402587086,1768714253818,-500.0,0.00017159,2]
[402587087,1768714253827,-500.0,0.00017159,2]
[402587088,1768714253837,-500.0,0.00017159,2]
[402587089,1768714253846,-500.0,0.00017159,2]
[402587090,1768714253855,-500.0,0.00017159,2]
[402587091,1768714253863,-500.0,0.00017159,2]
[402587092,1768714253872,-500.0,0.00017159,2]
[402587093,1768714253881,-500.0,0.00017159,2]
[402587094,1768714253890,-469.25889048,0.00017159,2]
[402587095,1768714253900,-500.0,0.00017159,2]
[402587096,1768714253909,-500.0,0.00017159,2]
[402587097,1768714253918,-500.0,0.00017159,2]
[402587098,1768714253926,-500.0,0.00017159,2]
[402587099,1768714253936,-500.0,0.00017159,2]
[402587100,1768714253946,-500.0,0.00017159,2]
[402587101,1768714253955,-685.91,0.00017159,2]
[402587102,1768714253971,-500.0,0.00017159,2]
[402587103,1768714253981,-500.0,0.00017159,2]
[402587104,1768714253991,-500.0,0.00017159,2]
[402587105,1768714254252,-500.0,0.00017159,2]
[402587106,1768714254312,-500.0,0.00017159,2]
[402587107,1768714254322,-500.0,0.00017159,2]
[402587108,1768714254331,-500.0,0.00017159,2]
[402587109,1768714254340,-500.0,0.00017159,2]
[402587110,1768714254349,-500.0,0.00017159,2]
[402587111,1768714254358,-500.0,0.00017159,2]
[402587112,1768714254368,-500.0,0.00017159,2]
[402587113,1768714254377,-500.0,0.00017159,2]
[402587114,1768714254386,-500.0,0.00017159,2]
[402587115,1768714254395,-500.0,0.00017159,2]
[402587116,1768714254404,-516.4,0.00017159,2]
[402587117,1768714254414,-500.0,0.00017159,2]
[402587118,1768714254423,-500.0,0.00017159,2]
[402587119,1768714254433,-500.0,0.00017159,2]
[402587120,1768714254442,-500.0,0.00017159,2]
[402587121,1768714254451,-500.0,0.00017159,2]
[402587122,1768714254460,-500.0,0.00017159,2]
[402587123,1768714254469,-500.0,0.00017159,2]
[402587124,1768714254479,-500.0,0.00017159,2]
[402587125,1768714254488,-500.0,0.00017159,2]
[402587126,1768714254497,-500.0,0.00017159,2]
[402587127,1768714254506,-500.0,0.00017159,2]
[402587128,1768714254515,-500.0,0.00017159,2]
[402587129,1768714254524,-500.0,0.00017159,2]
[402587130,1768714254533,-555.23,0.00017159,2]
[402587131,1768714254542,-500.0,0.00017159,2]
[402587132,1768714254551,-500.0,0.00017159,2]
[402587133,1768714254561,-500.0,0.00017159,2]
[402587134,1768714254569,-500.0,0.00017159,2]
[402587135,1768714254578,-334.17786071,0.00017159,2]
[402587136,1768714254587,-500.0,0.00017159,2]
[402587137,1768714254595,-500.0,0.00017159,2]
[402587138,1768714254603,-337.8,0.00017161,2]
[402587139,1768714254612,-1115.12,0.00017178,2]
[402587140,1768714254621,-150.0,0.00017178,2]
[402587141,1768714254630,-171.78,0.00017178,2]
[402587142,1768714254638,-300.0,0.00017178,2]
[402587143,1768714254646,-300.0,0.00017178,2]
[402587144,1768714254655,-150.0,0.00017212,2]
[402587145,1768714254664,-174.46312338,0.00017251,2]
[402587146,1768714254673,-1835.64,0.0001726,2]
[402587147,1768714254682,-500.0,0.0001726,2]
[402587148,1768714254690,-500.0,0.0001726,2]
[402587149,1768714254699,-281.99897673,0.0001726,2]
[402587150,1768714254709,-500.0,0.0001726,2]
[402587151,1768714254717,-500.0,0.0001726,2]
[402587152,1768714254726,-500.0,0.0001726,2]
[402587153,1768714254735,-500.0,0.0001726,2]
[402587154,1768714254744,-500.0,0.0001726,2]
[402587155,1768714254753,-500.0,0.0001726,2]
[402587156,1768714254762,-500.0,0.0001726,2]
[402587157,1768714254770,-500.0,0.0001726,2]
[402587158,1768714254777,-539.67,0.0001726,2]
[402587159,1768714254785,-150.0,0.00017272,2]
[402587160,1768714254791,-1101.0,0.00017277,2]
[402587161,1768714254798,-150.0,0.0001728,2]
[402587162,1768714254804,-150.0,0.0001728,2]
[402587163,1768714254811,-150.0,0.0001728,2]
[402587164,1768714254818,-337.8,0.00017281,2]
[402587165,1768714254824,-500.0,0.00017288,2]
[402587166,1768714254831,-1516.26585407,0.00017296,2]
[402587167,1768714254838,-157.37018608,0.00017305,2]
[402587168,1768714254845,-1000.0,0.00017321,2]
[402587169,1768714254851,-502.49278398,0.00017321,2]
[402587170,1768714254858,-882.76820555,0.00017321,2]
[402587171,1768714254865,-534.31507778,0.00017321,2]
[402587172,1768714254875,-1000.0,0.00017321,2]
[402587173,1768714254883,-500.0,0.00017321,2]
[402587174,1768714254892,-500.0,0.00017324,2]
[402587175,1768714254901,-150.0,0.00017324,2]
[402587176,1768714254910,-150.0,0.00017325,2]
[402587177,1768714254919,-153.20739091,0.00017338,2]
[402587178,1768714254929,-261.35951101,0.0001735,2]
[402587179,1768714254939,-6695.9179986,0.00017351,2]
[402587180,1768714254949,-94329.3240958,0.00017351,2]
[402587181,1768714254959,-3364.3790264,0.00017351,2]
[402587182,1768714254971,-31217.02409,0.00017351,2]
[402587183,1768714254982,-193878.54593341,0.00017351,2]
[402587184,1768714255945,-492.20210991,0.00017304,2]
[402587226,1768714679440,3058.92,0.00012878,2]
[402587237,1768714789038,161.24,7.713e-05,2]
[402587238,1768714789110,161.24,8.119e-05,2]
[402587239,1768714789157,161.24,8.525e-05,2]
[402587240,1768714789284,161.24,8.931e-05,2]
[402587241,1768714789484,161.24,9.337e-05,2]
[402587242,1768714789688,161.24,9.743e-05,2]
[402587243,1768714789886,161.24,0.00010149,2]
[402587244,1768714790096,161.24,0.00010555,2]
[402587245,1768714790289,161.24,0.00010961,2]
[402587246,1768714790486,161.24,0.00011367,2]
[402587247,1768714790678,161.24,0.00011773,2]
[402587248,1768714790877,161.24,0.00012179,2]
[402587249,1768714791082,161.24,0.00012585,2]
[402587250,1768714791285,161.24,0.00012991,2]
[402587306,1768715432180,-161.24,0.00013397,2]
[402587307,1768715432190,-161.24,0.00013803,2]
[402587308,1768715432199,-600.0,0.00014152,2]
[402587309,1768715432209,-161.24,0.00014209,2]
[402587310,1768715432218,-161.24,0.00014615,2]
[402587311,1768715432228,-1200.0,0.00014736,2]
[402587312,1768715432237,-338.20806756,0.00014737,2]
[402587313,1768715432247,-195.0,0.00014737,2]
[402587314,1768715432258,-600.0,0.00014737,2]
[402587315,1768715432268,-183.72789508,0.00014737,2]
[402587316,1768715432296,-416.27210492,0.00014737,2]
[402587317,1768715432306,-91.72789508,0.00015021,2]
[402587318,1768715432325,-69.51210492,0.00015021,2]
[402587319,1768715432335,-300.0,0.00015106,2]
[402587320,1768715432344,-500.0,0.00015106,2]
[402587321,1768715432353,-285.11793361,0.00015106,2]
[402587322,1768715432363,-10388.26839136,0.00015107,2]
[402587323,1768715432374,-8494.34587558,0.00015107,2]
[402587324,1768715432389,-854.31250193,0.00015107,2]
[402587327,1768715432405,-653.94812092,0.00015107,2]
[402587328,1768715432417,-2542.81382997,0.00015107,2]
[402587329,1768715432454,-1987.70597807,0.00015107,2]
[402587330,1768715432466,-2124.18576796,0.00015107,2]
[402587331,1768715432478,-2379.46437723,0.00015107,2]
[402587333,1768715432513,-999.0,0.00015107,2]
[402587335,1768715432525,-534.65719937,0.00015107,2]
[402587337,1768715432537,-453.28914531,0.00015107,2]
[402587347,1768715438148,-500.0,0.00015106,2]
[402587348,1768715438158,-500.0,0.00015106,2]
[402587349,1768715438168,-500.0,0.00015106,2]
[402587350,1768715438178,-500.0,0.00015106,2]
[402587351,1768715438188,-500.0,0.00015106,2]
[402587352,1768715438198,-233.07355845,0.00015106,2]
[402587353,1768715438207,-370.22474803,0.00015106,2]
[402587354,1768715438217,-500.0,0.00015106,2]
[402587355,1768715438227,-500.0,0.00015106,2]
[402587356,1768715438236,-500.0,0.00015106,2]
[402587357,1768715438246,-500.0,0.00015106,2]
[402587358,1768715438256,-500.0,0.00015106,2]
[402587359,1768715438266,-500.0,0.00015106,2]
[402587360,1768715438276,-500.0,0.00015106,2]
[402587361,1768715438285,-4709.96616559,0.00015107,2]
[402587362,1768715438297,-4478.58728033,0.00015107,2]
[402587363,1768715438308,-327.86690238,0.00015107,2]
[402587367,1768715440552,-342425.296264,0.00015107,2]
[402587368,1768715440562,-172.84,0.0001514,2]
[402587369,1768715440571,-184.04,0.00015161,2]
[402587370,1768715440581,-300.0,0.00015205,2]
[402587371,1768715440591,-46928.83,0.00015207,2]
[402587372,1768715440601,-200.0,0.000153,2]
[402587373,1768715440611,-1000.0,0.000153,2]
[402587374,1768715440620,-161.24,0.00015427,2]
[402587375,1768715440629,-500.0,0.00015479,2]
[402587376,1768715440638,-166.66,0.0001549,2]
[402587377,1768715440648,-502.0,0.00015699,2]
[402587378,1768715440657,-300.0,0.000158,5]
[402587379,1768715440667,-500.0,0.00015896,2]
[402587380,1768715440677,-700.0,0.000159,5]
[402587381,1768715440686,-662.88,0.00015941,2]
[402587382,1768715440695,-483.79,0.00015941,2]
[402587383,1768715440705,-463.69,0.00015993,2]
[402587384,1768715440715,-166.66,0.00016001,2]
[402587385,1768715440725,-184.04,0.00016003,2]
[402587386,1768715440734,-500.0,0.00016047,2]
[402587387,1768715440744,-500.0,0.00016047,2]
[402587388,1768715440753,-500.0,0.00016055,2]
[402587389,1768715440764,-500.0,0.00016102,2]
[402587390,1768715440773,-500.0,0.00016102,2]
[402587391,1768715440782,-500.0,0.0001611,2]
[402587392,1768715440792,-2070.6252,0.00016113,2]
[402587394,1768715440802,-2171.60946574,0.00016119,2]
[402587396,1768715440811,-1698.74574676,0.00016119,2]
[402587397,1768715440820,-153.20739094,0.00016119,2]
[402587398,1768715440830,-500.0,0.00016157,2]
[402587399,1768715440839,-500.0,0.00016157,2]
[402587400,1768715440848,-362.0,0.00016165,2]
[402587401,1768715440858,-150.0,0.000162,2]
[402587402,1768715440867,-150.0,0.000162,2]
[402587403,1768715440876,-150.0,0.000162,2]
[402587404,1768715440886,-150.0,0.000162,2]
[402587405,1768715440895,-150.0,0.000162,2]
[402587406,1768715440904,-150.0,0.000162,2]
[402587407,1768715440913,-150.0,0.000162,2]
[402587408,1768715440922,-170.37649707,0.000162,2]
[402587409,1768715440931,-150.0,0.000162,2]
[402587410,1768715440941,-150.0,0.000162,2]
[402587411,1768715440949,-150.0,0.000162,2]
[402587412,1768715440958,-150.0,0.000162,2]
[402587413,1768715440968,-1680.0,0.00016209,2]
[402587414,1768715440977,-151.0,0.0001621,2]
[402587416,1768715440987,-500.0,0.00016211,2]
[402587417,1768715440996,-500.0,0.00016211,2]
[402587418,1768715441005,-505.96569646,0.00016212,2]
[402587419,1768715441015,-1393.009,0.00016212,2]
[402587420,1768715441024,-500.0,0.00016212,2]
[402587421,1768715441035,-6630.01,0.00016224,2]
[402587422,1768715441046,-1000.0,0.00016233,2]
[402587423,1768715441056,-500.0,0.00016266,2]
[402587424,1768715441067,-500.0,0.00016266,2]
[402587425,1768715441076,-500.0,0.00016301,2]
[402587426,1768715441085,-2171.60946567,0.00016317,2]
[402587427,1768715441094,-1698.7457467,0.00016317,2]
[402587428,1768715441104,-150.0,0.0001632,2]
[402587429,1768715441114,-500.0,0.00016321,2]
[402587430,1768715441126,-500.0,0.00016321,2]
[402587431,1768715441136,-510.0,0.00016331,2]
[402587432,1768715441147,-500.0,0.00016356,2]
[402587433,1768715441156,-500.0,0.00016356,2]
[402587434,1768715441166,-600.0,0.00016356,2]
[402587435,1768715441177,-180.0,0.00016376,2]
[402587436,1768715441186,-500.0,0.00016376,2]
[402587437,1768715441195,-1000.0,0.00016377,2]
[402587438,1768715441204,-177.15,0.00016381,2]
[402587439,1768715441213,-500.0,0.00016431,2]
[402587440,1768715441223,-500.0,0.00016438,2]
[402587441,1768715441232,-500.99062584,0.00016438,2]
[402587442,1768715441242,-500.0,0.00016438,2]
[402587443,1768715441252,-500.0,0.00016438,2]
[402587444,1768715441263,-500.0,0.00016438,2]
[402587445,1768715441272,-500.0,0.00016438,2]
[402587446,1768715441281,-500.0,0.00016438,2]
[402587447,1768715441290,-500.0,0.00016438,2]
[402587448,1768715441299,-578.73,0.00016438,2]
[402587449,1768715441309,-500.0,0.00016438,2]
[402587450,1768715441318,-500.0,0.00016438,2]
[402587451,1768715441327,-500.0,0.00016438,2]
[402587452,1768715441336,-500.0,0.00016438,2]
[402587453,1768715441345,-500.0,0.00016438,2]
[402587454,1768715441355,-500.0,0.00016438,2]
[402587455,1768715441366,-500.0,0.00016438,2]
[402587456,1768715441376,-500.0,0.00016438,2]
[402587457,1768715441386,-500.0,0.00016438,2]
[402587458,1768715441396,-500.0,0.00016438,2]
[402587459,1768715441405,-500.0,0.00016438,2]
[402587460,1768715441414,-500.0,0.00016438,2]
[402587461,1768715441424,-1061.45476106,0.00016438,2]
[402587462,1768715441433,-500.0,0.00016438,2]
[402587463,1768715441444,-259.71711053,0.00016438,2]
[402587464,1768715441454,-460.80231418,0.00016438,2]
[402587465,1768715441465,-500.0,0.00016438,2]
[402587466,1768715441474,-500.0,0.00016438,2]
[402587467,1768715441483,-500.0,0.00016438,2]
[402587468,1768715441493,-500.0,0.00016438,2]
[402587469,1768715441502,-500.0,0.00016438,2]
[402587470,1768715441512,-500.0,0.00016438,2]
[402587471,1768715441523,-500.0,0.00016438,2]
[402587472,1768715441532,-500.0,0.00016438,2]
[402587473,1768715441546,-500.0,0.00016438,2]
[402587474,1768715441555,-500.0,0.00016438,2]
[402587475,1768715441564,-500.0,0.00016438,2]
[402587476,1768715441574,-500.0,0.00016438,2]
[402587477,1768715441585,-500.0,0.00016438,2]
[402587478,1768715441593,-500.0,0.00016438,2]
[402587479,1768715441603,-500.0,0.00016438,2]
[402587480,1768715441613,-500.0,0.00016438,2]
[402587481,1768715441623,-594.05,0.00016438,2]
[402587482,1768715441632,-500.0,0.00016438,2]
[402587483,1768715441642,-500.0,0.00016438,2]
[402587484,1768715441651,-500.0,0.00016438,2]
[402587485,1768715441661,-500.0,0.00016438,2]
[402587486,1768715441671,-500.0,0.00016438,2]
[402587487,1768715441680,-500.0,0.00016438,2]
[402587488,1768715441689,-500.0,0.00016438,2]
[402587489,1768715441698,-500.0,0.00016438,2]
[402587490,1768715441707,-500.0,0.00016438,2]
[402587491,1768715441716,-504.76,0.00016438,2]
[402587492,1768715441725,-500.0,0.00016438,2]
[402587493,1768715441734,-500.0,0.00016438,2]
[402587494,1768715441744,-500.0,0.00016438,2]
[402587495,1768715441752,-500.0,0.00016438,2]
[402587496,1768715441761,-500.0,0.00016438,2]
[402587497,1768715441770,-500.0,0.00016438,2]
[402587498,1768715441779,-500.0,0.00016438,2]
[402587499,1768715441789,-500.0,0.00016438,2]
[402587500,1768715441799,-500.0,0.00016438,2]
[402587501,1768715441808,-500.0,0.00016438,2]
[402587502,1768715441817,-500.0,0.00016438,2]
[402587503,1768715441826,-500.0,0.00016438,2]
[402587504,1768715441834,-500.0,0.00016438,2]
[402587505,1768715441843,-500.0,0.00016438,2]
[402587506,1768715441853,-500.0,0.00016438,2]
[402587507,1768715441862,-500.0,0.00016438,2]
[402587508,1768715441871,-500.0,0.00016438,2]
[402587509,1768715441881,-500.0,0.00016438,2]
[402587510,1768715441890,-500.0,0.00016438,2]
[402587511,1768715441898,-500.0,0.00016438,2]
[402587512,1768715441908,-500.0,0.00016438,2]
[402587513,1768715441917,-500.0,0.00016438,2]
[402587514,1768715441926,-500.0,0.00016438,2]
[402587515,1768715441935,-396.38953581,0.00016438,2]